Workbook

Sheet Timing
A1: ="["&ROWS(A$1:A1)&"]: "&_xlfn.FORMULATEXT(INDEX($G$12:$I$12,ROWS(A$1:A1))) -> [1]: {=AVERAGE(IF(SUMIFS($B$6:$B$5004,$C$6:$C$5004,F12,$D$6:$D$5004,$F$6:$F$8)>0,SUMIFS($B$6:$B$5004,$C$6:$C$5004,F12,$D$6:$D$5004,$F$6:$F$8)))}
A2: ="["&ROWS(A$1:A2)&"]: "&_xlfn.FORMULATEXT(INDEX($G$12:$I$12,ROWS(A$1:A2))) -> [2]: {=SUMIFS($B$6:$B$5004,$C$6:$C$5004,F12)/SUM(IF(FREQUENCY(IF($C$6:$C$5004=F12,$D$6:$D$5004),$F$6:$F$8),1))}
A3: ="["&ROWS(A$1:A3)&"]: "&_xlfn.FORMULATEXT(INDEX($G$12:$I$12,ROWS(A$1:A3))) -> [3]: {=SUMIFS($B$6:$B$5004,$C$6:$C$5004,F12)/SUM(IF(COUNTIFS($C$6:$C$5004,F12,$D$6:$D$5004,$F$6:$F$8),1))}
A5: Date | B5: Sales | C5: Product | D5: Customer Key | F5: Customer | K5: Thanks to Excel MVP Charles Williams for VBA code ti time : )
A6: 2017-02-22 | B6: 6021.15 | C6: Quad | D6: 1 | F6: 1
A7: 2017-02-15 | B7: 337.35 | C7: Aspen | D7: 2 | F7: 2
A8: 2017-02-26 | B8: 3368.75 | C8: Sunset | D8: 1 | F8: 3
A9: 2017-02-20 | B9: 5449.8 | C9: Quad | D9: 1
A10: 2017-02-26 | B10: 2880.45 | C10: Aspen | D10: 2 | F10: Average of Customer Total Sales by Product
A11: 2017-02-18 | B11: 1406.4 | C11: Quad | D11: 1 | F11: Product | G11: ="["&COLUMNS($G11:G11)&"]" -> [1] | H11: ="["&COLUMNS($G11:H11)&"]" -> [2] | I11: ="["&COLUMNS($G11:I11)&"]" -> [3]
A12: 2017-02-13 | B12: 1374.45 | C12: Sunset | D12: 2 | F12: Aspen | G12: =AVERAGE(IF(SUMIFS($B$6:$B$5004,$C$6:$C$5004,F12,$D$6:$D$5004,$F$6:$F$8)>0,SUMIFS($B$6:$B$5004,$C$6:$C$5004,F12,$D$6:$D$5004,$F$6:$F$8))) -> 781025.8 | H12: =SUMIFS($B$6:$B$5004,$C$6:$C$5004,F12)/SUM(IF(FREQUENCY(IF($C$6:$C$5004=F12,$D$6:$D$5004),$F$6:$F$8),1)) -> 781025.8 | I12: =SUMIFS($B$6:$B$5004,$C$6:$C$5004,F12)/SUM(IF(COUNTIFS($C$6:$C$5004,F12,$D$6:$D$5004,$F$6:$F$8),1)) -> 781025.8
A13: 2017-02-11 | B13: 1597.55 | C13: Eagle | D13: 3 | F13: Eagle | G13: =AVERAGE(IF(SUMIFS($B$6:$B$5004,$C$6:$C$5004,F13,$D$6:$D$5004,$F$6:$F$8)>0,SUMIFS($B$6:$B$5004,$C$6:$C$5004,F13,$D$6:$D$5004,$F$6:$F$8))) -> 570618.5333 | H13: =SUMIFS($B$6:$B$5004,$C$6:$C$5004,F13)/SUM(IF(FREQUENCY(IF($C$6:$C$5004=F13,$D$6:$D$5004),$F$6:$F$8),1)) -> 570618.5333 | I13: =SUMIFS($B$6:$B$5004,$C$6:$C$5004,F13)/SUM(IF(COUNTIFS($C$6:$C$5004,F13,$D$6:$D$5004,$F$6:$F$8),1)) -> 570618.5333
A14: 2017-02-24 | B14: 2102.1 | C14: Sunset | D14: 1 | F14: Quad | G14: =AVERAGE(IF(SUMIFS($B$6:$B$5004,$C$6:$C$5004,F14,$D$6:$D$5004,$F$6:$F$8)>0,SUMIFS($B$6:$B$5004,$C$6:$C$5004,F14,$D$6:$D$5004,$F$6:$F$8))) -> 1319291.1 | H14: =SUMIFS($B$6:$B$5004,$C$6:$C$5004,F14)/SUM(IF(FREQUENCY(IF($C$6:$C$5004=F14,$D$6:$D$5004),$F$6:$F$8),1)) -> 1319291.1 | I14: =SUMIFS($B$6:$B$5004,$C$6:$C$5004,F14)/SUM(IF(COUNTIFS($C$6:$C$5004,F14,$D$6:$D$5004,$F$6:$F$8),1)) -> 1319291.1
A15: 2017-02-16 | B15: 1940.4 | C15: Sunset | D15: 3 | F15: Sunset | G15: =AVERAGE(IF(SUMIFS($B$6:$B$5004,$C$6:$C$5004,F15,$D$6:$D$5004,$F$6:$F$8)>0,SUMIFS($B$6:$B$5004,$C$6:$C$5004,F15,$D$6:$D$5004,$F$6:$F$8))) -> 803666.9667 | H15: =SUMIFS($B$6:$B$5004,$C$6:$C$5004,F15)/SUM(IF(FREQUENCY(IF($C$6:$C$5004=F15,$D$6:$D$5004),$F$6:$F$8),1)) -> 803666.9667 | I15: =SUMIFS($B$6:$B$5004,$C$6:$C$5004,F15)/SUM(IF(COUNTIFS($C$6:$C$5004,F15,$D$6:$D$5004,$F$6:$F$8),1)) -> 803666.9667
A16: 2017-02-22 | B16: 2425.5 | C16: Sunset | D16: 1
A17: 2017-02-14 | B17: 789.8 | C17: Eagle | D17: 1 | F17: Time | G17: =G11 -> [1] | H17: [2] | I17: [3]
A18: 2017-02-22 | B18: 6284.85 | C18: Quad | D18: 1 | F18: Time 1 | G18: 0.00645 | H18: 0.00332 | I18: 0.00422
A19: 2017-02-25 | B19: 2812.8 | C19: Quad | D19: 2 | F19: Time 2 | G19: 0.00668 | H19: 0.00335 | I19: 0.00454
A20: 2017-02-25 | B20: 3999.45 | C20: Quad | D20: 3 | F20: Time 3 | G20: 0.00651 | H20: 0.00331 | I20: 0.00431
A21: 2017-02-26 | B21: 404.25 | C21: Sunset | D21: 3 | F21: Average | G21: =AVERAGE(G18:G20) -> 0.006546666667 | H21: =AVERAGE(H18:H20) -> 0.003326666667 | I21: =AVERAGE(I18:I20) -> 0.004356666667
A22: 2017-02-14 | B22: 2646.9 | C22: Aspen | D22: 3 | F22: % Change from Fastest | G22: =G21/MIN($G$21:$I$21)-1 -> 0.9679358717 | H22: 0 | I22: 0.3096192385
A23: 2017-02-27 | B23: 3076.5 | C23: Quad | D23: 2
A24: 2017-02-18 | B24: 2587.2 | C24: Sunset | D24: 1
A25: 2017-02-13 | B25: 3032.55 | C25: Quad | D25: 1
A26: 2017-02-17 | B26: 1401.4 | C26: Sunset | D26: 3
A27: 2017-02-25 | B27: 2021.7 | C27: Quad | D27: 2
A28: 2017-02-15 | B28: 628.25 | C28: Eagle | D28: 3
A29: 2017-02-21 | B29: 1274.55 | C29: Quad | D29: 1
A30: 2017-02-23 | B30: 3018.4 | C30: Sunset | D30: 3
A31: 2017-02-18 | B31: 5230.05 | C31: Quad | D31: 3
A32: 2017-02-22 | B32: 25.95 | C32: Aspen | D32: 2
A33: 2017-02-27 | B33: 430.8 | C33: Eagle | D33: 1
A34: 2017-02-20 | B34: 175.8 | C34: Quad | D34: 1
A35: 2017-02-22 | B35: 2046.3 | C35: Eagle | D35: 3
A36: 2017-02-15 | B36: 835.45 | C36: Sunset | D36: 3
A37: 2017-02-20 | B37: 4395 | C37: Quad | D37: 3
A38: 2017-02-12 | B38: 2461.2 | C38: Quad | D38: 1
A39: 2017-02-25 | B39: 467.1 | C39: Aspen | D39: 1
A40: 2017-02-26 | B40: 2491.2 | C40: Aspen | D40: 2
A41: 2017-02-14 | B41: 3207.05 | C41: Sunset | D41: 2
A42: 2017-02-22 | B42: 1538.25 | C42: Quad | D42: 1
A43: 2017-02-23 | B43: 1714.05 | C43: Quad | D43: 2
A44: 2017-02-18 | B44: 134.75 | C44: Sunset | D44: 3
A45: 2017-02-17 | B45: 1158.85 | C45: Sunset | D45: 1
A46: 2017-02-14 | B46: 134.75 | C46: Sunset | D46: 3
A47: 2017-02-18 | B47: 3287.9 | C47: Sunset | D47: 1
A48: 2017-02-10 | B48: 1038 | C48: Aspen | D48: 1
A49: 2017-02-18 | B49: 394.9 | C49: Eagle | D49: 2
A50: 2017-02-22 | B50: 89.75 | C50: Eagle | D50: 1
A51: 2017-02-21 | B51: 377.3 | C51: Sunset | D51: 1
A52: 2017-02-20 | B52: 4834.5 | C52: Quad | D52: 1
A53: 2017-02-17 | B53: 556.45 | C53: Eagle | D53: 1
A54: 2017-02-26 | B54: 1894.35 | C54: Aspen | D54: 3
A55: 2017-02-20 | B55: 1669.35 | C55: Eagle | D55: 2
A56: 2017-02-20 | B56: 856.35 | C56: Aspen | D56: 3
A57: 2017-02-13 | B57: 1167.75 | C57: Aspen | D57: 1
A58: 2017-02-13 | B58: 323.1 | C58: Eagle | D58: 2
A59: 2017-02-24 | B59: 1795 | C59: Eagle | D59: 2
A60: 2017-02-22 | B60: 628.25 | C60: Eagle | D60: 3
A61: 2017-02-19 | B61: 897.5 | C61: Eagle | D61: 1
A62: 2017-02-15 | B62: 1902.7 | C62: Eagle | D62: 2
A63: 2017-02-10 | B63: 2118.1 | C63: Eagle | D63: 1
A64: 2017-02-10 | B64: 4087.35 | C64: Quad | D64: 1
A65: 2017-02-11 | B65: 484.65 | C65: Eagle | D65: 2
A66: 2017-02-21 | B66: 2197.5 | C66: Quad | D66: 2
A67: 2017-02-18 | B67: 1812.95 | C67: Eagle | D67: 2
A68: 2017-02-23 | B68: 1023.15 | C68: Eagle | D68: 2
A69: 2017-02-10 | B69: 2371.6 | C69: Sunset | D69: 1
A70: 2017-02-16 | B70: 5713.5 | C70: Quad | D70: 3
A71: 2017-02-28 | B71: 2646.9 | C71: Aspen | D71: 3
A72: 2017-02-11 | B72: 3530.45 | C72: Sunset | D72: 1
A73: 2017-02-15 | B73: 1859.55 | C73: Sunset | D73: 3
A74: 2017-02-10 | B74: 3449.6 | C74: Sunset | D74: 3
A75: 2017-02-19 | B75: 188.65 | C75: Sunset | D75: 1
A76: 2017-02-16 | B76: 1023.15 | C76: Eagle | D76: 1
A77: 2017-02-20 | B77: 404.25 | C77: Sunset | D77: 3
A78: 2017-02-11 | B78: 571.35 | C78: Quad | D78: 3
A79: 2017-02-21 | B79: 1274.55 | C79: Quad | D79: 1
A80: 2017-02-10 | B80: 3191.85 | C80: Aspen | D80: 3
A81: 2017-02-19 | B81: 3647.85 | C81: Quad | D81: 1
A82: 2017-02-20 | B82: 574.4 | C82: Eagle | D82: 2
A83: 2017-02-12 | B83: 341.05 | C83: Eagle | D83: 2
A84: 2017-02-17 | B84: 1714.05 | C84: Quad | D84: 3
A85: 2017-02-27 | B85: 1054.8 | C85: Quad | D85: 2
A86: 2017-02-16 | B86: 3472.05 | C86: Quad | D86: 3
A87: 2017-02-22 | B87: 376.95 | C87: Eagle | D87: 2
A88: 2017-02-21 | B88: 53.85 | C88: Eagle | D88: 2
A89: 2017-02-28 | B89: 1884.75 | C89: Eagle | D89: 2
A90: 2017-02-17 | B90: 565.95 | C90: Sunset | D90: 2
A91: 2017-02-11 | B91: 4482.9 | C91: Quad | D91: 3
A92: 2017-02-28 | B92: 1582.2 | C92: Quad | D92: 2
A93: 2017-02-17 | B93: 2207.85 | C93: Eagle | D93: 3
A94: 2017-02-14 | B94: 285.45 | C94: Aspen | D94: 2
A95: 2017-02-17 | B95: 1933.8 | C95: Quad | D95: 3
A96: 2017-02-22 | B96: 2637 | C96: Quad | D96: 1
A97: 2017-02-19 | B97: 1077 | C97: Eagle | D97: 1
A98: 2017-02-17 | B98: 2076 | C98: Aspen | D98: 3
A99: 2017-02-21 | B99: 2153.55 | C99: Quad | D99: 3
A100: 2017-02-24 | B100: 1790.55 | C100: Aspen | D100: 1
A101: 2017-02-16 | B101: 5317.95 | C101: Quad | D101: 1
A102: 2017-02-26 | B102: 1212.75 | C102: Sunset | D102: 2
A103: 2017-02-27 | B103: 3719.1 | C103: Sunset | D103: 1
A104: 2017-02-16 | B104: 1670.1 | C104: Quad | D104: 3
A105: 2017-02-14 | B105: 51.9 | C105: Aspen | D105: 2
A106: 2017-02-20 | B106: 1245.6 | C106: Aspen | D106: 1
A107: 2017-02-11 | B107: 2076 | C107: Aspen | D107: 3
A108: 2017-02-17 | B108: 2750.7 | C108: Aspen | D108: 3
A109: 2017-02-17 | B109: 3665.2 | C109: Sunset | D109: 2
A110: 2017-02-21 | B110: 2560.25 | C110: Sunset | D110: 2
A111: 2017-02-18 | B111: 2387.4 | C111: Aspen | D111: 3
A112: 2017-02-10 | B112: 5098.2 | C112: Quad | D112: 3
A113: 2017-02-25 | B113: 1479.15 | C113: Aspen | D113: 3
A114: 2017-02-13 | B114: 129.75 | C114: Aspen | D114: 2
A115: 2017-02-15 | B115: 3719.1 | C115: Sunset | D115: 2
A116: 2017-02-13 | B116: 305.15 | C116: Eagle | D116: 2
A117: 2017-02-26 | B117: 519 | C117: Aspen | D117: 1
A118: 2017-02-11 | B118: 5010.3 | C118: Quad | D118: 1
A119: 2017-02-21 | B119: 4482.9 | C119: Quad | D119: 1
A120: 2017-02-26 | B120: 966.9 | C120: Quad | D120: 2
A121: 2017-02-27 | B121: 3425.4 | C121: Aspen | D121: 1
A122: 2017-02-18 | B122: 2984.25 | C122: Aspen | D122: 3
A123: 2017-02-26 | B123: 2136.05 | C123: Eagle | D123: 1
A124: 2017-02-11 | B124: 879 | C124: Quad | D124: 1
A125: 2017-02-19 | B125: 5581.65 | C125: Quad | D125: 1
A126: 2017-02-17 | B126: 3425.4 | C126: Aspen | D126: 3
A127: 2017-02-24 | B127: 3477.3 | C127: Aspen | D127: 1
A128: 2017-02-16 | B128: 1998.15 | C128: Aspen | D128: 3
A129: 2017-02-21 | B129: 3072.3 | C129: Sunset | D129: 2
A130: 2017-02-21 | B130: 1697.85 | C130: Sunset | D130: 1
A131: 2017-02-16 | B131: 2479.4 | C131: Sunset | D131: 3
A132: 2017-02-11 | B132: 1230.6 | C132: Quad | D132: 1
A133: 2017-02-16 | B133: 5801.4 | C133: Quad | D133: 3
A134: 2017-02-10 | B134: 2569.05 | C134: Aspen | D134: 1
A135: 2017-02-12 | B135: 129.75 | C135: Aspen | D135: 3
A136: 2017-02-12 | B136: 3773 | C136: Sunset | D136: 2
A137: 2017-02-18 | B137: 1494.3 | C137: Quad | D137: 3
A138: 2017-02-28 | B138: 2724.9 | C138: Quad | D138: 3
A139: 2017-02-18 | B139: 556.45 | C139: Eagle | D139: 1
A140: 2017-02-10 | B140: 2064.25 | C140: Eagle | D140: 3
A141: 2017-02-21 | B141: 610.3 | C141: Eagle | D141: 3
A142: 2017-02-22 | B142: 4307.1 | C142: Quad | D142: 3
A143: 2017-02-23 | B143: 2587.2 | C143: Sunset | D143: 2
A144: 2017-02-28 | B144: 337.35 | C144: Aspen | D144: 3
A145: 2017-02-26 | B145: 1886.5 | C145: Sunset | D145: 1
A146: 2017-02-19 | B146: 1633.45 | C146: Eagle | D146: 1
A147: 2017-02-23 | B147: 1364.2 | C147: Eagle | D147: 2
A148: 2017-02-21 | B148: 674.7 | C148: Aspen | D148: 1
A149: 2017-02-18 | B149: 2129.05 | C149: Sunset | D149: 3
A150: 2017-02-15 | B150: 3529.2 | C150: Aspen | D150: 2
A151: 2017-02-19 | B151: 1489.85 | C151: Eagle | D151: 1
A152: 2017-02-19 | B152: 1479.15 | C152: Aspen | D152: 3
A153: 2017-02-14 | B153: 1374.45 | C153: Sunset | D153: 2
A154: 2017-02-10 | B154: 3735.75 | C154: Quad | D154: 2
A155: 2017-02-18 | B155: 80.85 | C155: Sunset | D155: 1
A156: 2017-02-10 | B156: 3425.4 | C156: Aspen | D156: 3
A157: 2017-02-12 | B157: 5142.15 | C157: Quad | D157: 3
A158: 2017-02-21 | B158: 753.9 | C158: Eagle | D158: 2
A159: 2017-02-20 | B159: 134.75 | C159: Sunset | D159: 2
A160: 2017-02-27 | B160: 6109.05 | C160: Quad | D160: 2
A161: 2017-02-12 | B161: 4395 | C161: Quad | D161: 2
A162: 2017-02-27 | B162: 915.45 | C162: Eagle | D162: 1
A163: 2017-02-22 | B163: 1166.75 | C163: Eagle | D163: 3
A164: 2017-02-24 | B164: 1507.8 | C164: Eagle | D164: 3
A165: 2017-02-26 | B165: 1816.5 | C165: Aspen | D165: 1
A166: 2017-02-14 | B166: 3399.45 | C166: Aspen | D166: 2
A167: 2017-02-12 | B167: 2984.25 | C167: Aspen | D167: 3
A168: 2017-02-27 | B168: 1920.3 | C168: Aspen | D168: 3
A169: 2017-02-12 | B169: 502.6 | C169: Eagle | D169: 1
A170: 2017-02-21 | B170: 1038 | C170: Aspen | D170: 3
A171: 2017-02-28 | B171: 2405.3 | C171: Eagle | D171: 1
A172: 2017-02-19 | B172: 1842.45 | C172: Aspen | D172: 2
A173: 2017-02-28 | B173: 3746.05 | C173: Sunset | D173: 3
A174: 2017-02-27 | B174: 1705.25 | C174: Eagle | D174: 2
A175: 2017-02-17 | B175: 3476.55 | C175: Sunset | D175: 2
A176: 2017-02-14 | B176: 3180.1 | C176: Sunset | D176: 2
A177: 2017-02-23 | B177: 2425.5 | C177: Sunset | D177: 1
A178: 2017-02-19 | B178: 1077 | C178: Eagle | D178: 1
A179: 2017-02-18 | B179: 1142.7 | C179: Quad | D179: 1
A180: 2017-02-15 | B180: 26.95 | C180: Sunset | D180: 2
A181: 2017-02-21 | B181: 1482.25 | C181: Sunset | D181: 2
A182: 2017-02-18 | B182: 1148.8 | C182: Eagle | D182: 3
A183: 2017-02-10 | B183: 1832.6 | C183: Sunset | D183: 3
A184: 2017-02-17 | B184: 754.6 | C184: Sunset | D184: 2
A185: 2017-02-10 | B185: 4834.5 | C185: Quad | D185: 1
A186: 2017-02-19 | B186: 3036.15 | C186: Aspen | D186: 1
A187: 2017-02-23 | B187: 897.5 | C187: Eagle | D187: 1
A188: 2017-02-18 | B188: 4175.25 | C188: Quad | D188: 3
A189: 2017-02-10 | B189: 2127.9 | C189: Aspen | D189: 3
A190: 2017-02-23 | B190: 4219.2 | C190: Quad | D190: 3
A191: 2017-02-27 | B191: 3611.3 | C191: Sunset | D191: 3
A192: 2017-02-21 | B192: 2513 | C192: Eagle | D192: 2
A193: 2017-02-23 | B193: 129.75 | C193: Aspen | D193: 1
A194: 2017-02-19 | B194: 2236.85 | C194: Sunset | D194: 2
A195: 2017-02-24 | B195: 2900.7 | C195: Quad | D195: 1
A196: 2017-02-15 | B196: 619.85 | C196: Sunset | D196: 1
A197: 2017-02-22 | B197: 5361.9 | C197: Quad | D197: 1
A198: 2017-02-26 | B198: 5361.9 | C198: Quad | D198: 3
A199: 2017-02-13 | B199: 3911.55 | C199: Quad | D199: 3
A200: 2017-02-15 | B200: 1956.55 | C200: Eagle | D200: 2
A201: 2017-02-18 | B201: 1051.05 | C201: Sunset | D201: 3
... 4803 more rows
